fUST/lending_fUST_20251105
["ID","MTS","AMOUNT","RATE_DAILY","PERIOD"]
[393122123,1762278635114,-150.94,0.00035339,60]
[393122124,1762278635123,-463.0,0.00035422,2]
[393122125,1762278635133,-150.94,0.00035437,60]
[393122126,1762278635142,-150.94,0.00035439,60]
[393122127,1762278635152,-150.94,0.00035439,60]
[393122128,1762278635161,-500.0,0.00035512,5]
[393122129,1762278635171,-150.94,0.00035537,60]
[393122130,1762278635180,-150.94,0.00035539,60]
[393122131,1762278635191,-150.94,0.00035539,60]
[393122132,1762278635201,-500.0,0.00035542,30]
[393122133,1762278635210,-158.19935144,0.00035582,14]
[393122134,1762278635220,-150.94,0.00035637,60]
[393122135,1762278635230,-150.94,0.00035639,60]
[393122136,1762278635239,-150.94,0.00035639,60]
[393122137,1762278635249,-500.0,0.00035673,5]
[393122138,1762278635258,-500.0,0.00035673,5]
[393122139,1762278635267,-500.0,0.00035673,5]
[393122140,1762278635276,-2750.0,0.00035675,7]
[393122141,1762278635286,-53146.86365824,0.00035698,2]
[393122142,1762278635297,-1580.33,0.000357,30]
[393122143,1762278635306,-150.94,0.00035737,60]
[393122144,1762278635316,-150.94,0.00035739,60]
[393122146,1762278635326,-150.94,0.00035739,60]
[393122148,1762278635335,-463.0,0.00035797,7]
[393122150,1762278635345,-151.0,0.000358,20]
[393122152,1762278635354,-23692.39,0.000358,14]
[393122154,1762278635364,-463.0,0.00035832,2]
[393122155,1762278635373,-150.94,0.00035837,60]
[393122156,1762278635382,-150.94,0.00035839,60]
[393122157,1762278635391,-150.94,0.00035839,60]
[393122158,1762278635400,-150.0,0.000359,5]
[393122159,1762278635410,-150.98,0.00035937,60]
[393122160,1762278635420,-150.94,0.00035939,60]
[393122161,1762278635429,-150.94,0.00035939,60]
[393122162,1762278635438,-150.94,0.00036039,60]
[393122163,1762278635447,-150.94,0.00036039,60]
[393122164,1762278635457,-503.95083039,0.00036124,5]
[393122165,1762278635466,-500.0,0.00036124,5]
[393122166,1762278635475,-500.0,0.00036124,5]
[393122167,1762278635485,-500.0,0.00036124,5]
[393122168,1762278635494,-215.36219383,0.00036124,5]
[393122169,1762278635503,-150.94,0.00036139,60]
[393122170,1762278635513,-150.94,0.00036139,60]
[393122171,1762278635522,-1000.0,0.00036221,5]
[393122172,1762278635531,-1000.0,0.00036221,5]
[393122173,1762278635541,-1000.0,0.00036221,5]
[393122174,1762278635552,-150.94,0.00036239,60]
[393122175,1762278635562,-150.94,0.00036239,60]
[393122176,1762278635572,-150.94,0.00036339,60]
[393122177,1762278635581,-150.94,0.00036339,60]
[393122178,1762278635590,-1069.11997411,0.0003642,5]
[393122179,1762278635599,-151.0,0.00036439,60]
[393122180,1762278635609,-151.0,0.00036439,60]
[393122181,1762278635621,-250.0,0.00036448,5]
[393122182,1762278635630,-463.0,0.00036578,7]
[393122183,1762278635640,-43686.2884638,0.0003659,3]
[393122184,1762278635649,-382.41379697,0.0003659,3]
[393122185,1762278635659,-2000.0,0.00036592,7]
[393122186,1762278635669,-1000.0,0.00036671,5]
[393122187,1762278635678,-502.62033552,0.00036671,5]
[393122188,1762278635687,-1012.59999003,0.00036671,5]
[393122189,1762278635698,-200.0,0.00036747,120]
[393122190,1762278635707,-1503.29287235,0.00036768,5]
[393122191,1762278635715,-501.79191539,0.00036768,5]
[393122192,1762278635724,-954.80397254,0.00036768,5]
[393122193,1762278635734,-1580.33,0.000368,30]
[393122194,1762278635743,-151.0,0.000369,16]
[393122195,1762278635752,-301.9502093,0.00036996,5]
[393122196,1762278635761,-690.44156189,0.00037104,4]
[393122197,1762278635770,-463.0,0.00037124,2]
[393122198,1762278635779,-463.0,0.00037159,7]
[393122199,1762278635787,-1500.0,0.00037219,5]
[393122200,1762278635797,-2750.0,0.00037327,120]
[393122201,1762278635806,-43686.2884638,0.00037334,3]
[393122202,1762278635816,-382.41379697,0.00037334,3]
[393122203,1762278635825,-2750.0,0.00037344,2]
[393122204,1762278635834,-185.00227264,0.00037373,2]
[393122205,1762278635843,-807.0,0.00037415,2]
[393122206,1762278635852,-131058.865391,0.00037429,3]
[393122207,1762278635861,-5353.79315758,0.00037429,3]
[393122208,1762278635871,-200.0,0.00037438,10]
[393122209,1762278635880,-200.0,0.00037438,10]
[393122210,1762278635889,-200.0,0.00037438,10]
[393122211,1762278635898,-500.0,0.00037439,120]
[393122212,1762278635908,-500.0,0.00037439,120]
[393122213,1762278635917,-500.0,0.00037439,120]
[393122214,1762278635926,-500.0,0.00037439,120]
[393122215,1762278635945,-500.0,0.00037439,120]
[393122216,1762278635964,-500.0,0.00037439,120]
[393122217,1762278635979,-500.0,0.00037439,120]
[393122218,1762278635989,-648.930845,0.00037439,120]
[393122219,1762278636000,-155.237815,0.00037439,31]
[393122220,1762278636011,-151.0,0.00037439,31]
[393122221,1762278636022,-151.0,0.00037439,31]
[393122222,1762278636032,-151.0,0.00037439,31]
[393122223,1762278636041,-151.0,0.00037439,31]
[393122224,1762278636052,-151.0,0.00037439,31]
[393122225,1762278636063,-151.0,0.00037439,31]
[393122226,1762278636073,-685000.0,0.00037439,2]
[393122227,1762278636082,-500.0,0.00037473,5]
[393122228,1762278636091,-500.0,0.00037473,5]
[393122229,1762278636100,-500.0,0.00037473,5]
[393122230,1762278636109,-500.0,0.00037473,5]
[393122231,1762278636118,-164.67876731,0.00037473,5]
[393122232,1762278636129,-500.0,0.00037473,5]
[393122233,1762278636138,-807.0,0.00037488,120]
[393122234,1762278636147,-382.41379697,0.0003749,3]
[393122235,1762278636156,-151.0,0.000375,13]
[393122236,1762278636166,-151.0,0.000375,11]
[393122237,1762278636175,-150.0,0.000375,10]
[393122238,1762278636185,-1395.67,0.000375,14]
[393122239,1762278636195,-807.0,0.00037519,7]
[393122240,1762278636204,-501.97225389,0.0003752,14]
[393122241,1762278636214,-503.27819796,0.0003752,14]
[393122242,1762278636223,-1000.0,0.00037529,2]
[393122243,1762278636233,-1000.0,0.00037529,2]
[393122244,1762278636242,-1000.0,0.00037529,2]
[393122245,1762278636251,-1000.0,0.00037529,2]
[393122246,1762278636260,-1000.0,0.00037529,2]
[393122247,1762278636270,-1000.0,0.00037539,2]
[393122248,1762278636279,-1000.0,0.00037539,2]
[393122249,1762278636288,-1000.0,0.00037539,2]
[393122250,1762278636298,-1000.0,0.00037539,2]
[393122251,1762278636307,-1020.96833816,0.00037539,2]
[393122252,1762278636319,-503.7406251,0.00037573,5]
[393122253,1762278636329,-151.0,0.000376,11]
[393122254,1762278636338,-151.0,0.000376,20]
[393122255,1762278636348,-151.0,0.000376,14]
[393122256,1762278636357,-151.0,0.000376,12]
[393122257,1762278636367,-151.0,0.000376,13]
[393122258,1762278636377,-151.0,0.000376,11]
[393122259,1762278636386,-151.0,0.000376,17]
[393122260,1762278636395,-151.0,0.000376,14]
[393122261,1762278636405,-151.0,0.000376,10]
[393122262,1762278636415,-151.0,0.000376,11]
[393122263,1762278636424,-151.0,0.000376,11]
[393122264,1762278636433,-280.59493611,0.000376,120]
[393122265,1762278636442,-171.72962965,0.000376,120]
[393122266,1762278636452,-195.25612313,0.000376,120]
[393122267,1762278636461,-171.88400585,0.000376,120]
[393122268,1762278636471,-160.28790208,0.000376,120]
[393122269,1762278636480,-174.47334731,0.000376,120]
[393122270,1762278636489,-346.48087703,0.000376,120]
[393122271,1762278636500,-853.3162474,0.000376,120]
[393122272,1762278636510,-989.69160086,0.000376,120]
[393122273,1762278636519,-807.0,0.00037616,2]
[393122274,1762278636528,-152.394654,0.00037642,31]
[393122275,1762278636537,-7398.22819199,0.000377,19]
[393122276,1762278636545,-2000.0,0.00037767,5]
[393122277,1762278636555,-155.0,0.00037778,2]
[393122278,1762278636564,-250.0,0.00037778,10]
[393122279,1762278636574,-250.0,0.00037778,10]
[393122280,1762278636586,-250.0,0.00037778,10]
[393122281,1762278636595,-500.0,0.00037779,14]
[393122282,1762278636604,-502.11324047,0.00037779,14]
[393122283,1762278636618,-345.0,0.00037901,2]
[393122284,1762278636628,-425.0,0.00037931,2]
[393122285,1762278636638,-463.0,0.00037981,2]
[393122286,1762278636647,-382.41379697,0.0003799,3]
[393122287,1762278636658,-10000.0,0.00038,10]
[393122288,1762278636667,-463.0,0.00038,2]
[393122289,1762278636677,-1114.72571823,0.00038021,5]
[393122290,1762278636686,-159.28000659,0.00038021,5]
[393122291,1762278636697,-1000.0,0.00038021,5]
[393122292,1762278636705,-1000.0,0.00038021,5]
[393122293,1762278636714,-184.32788368,0.00038121,120]
[393122294,1762278636723,-345.0,0.00038229,2]
[393122295,1762278636732,-807.0,0.00038245,2]
[393122296,1762278636741,-1395.67,0.000383,14]
[393122297,1762278636751,-1025.10056905,0.00038315,5]
[393122298,1762278636761,-2164.0,0.00038347,2]
[393122299,1762278636770,-425.0,0.00038366,2]
[393122300,1762278636779,-204.65926239,0.00038367,2]
[393122301,1762278636789,-807.0,0.00038408,7]
[393122302,1762278636798,-168.0,0.00038528,2]
[393122303,1762278636807,-1500.0,0.00038568,5]
[393122304,1762278636818,-1000.0,0.00038602,90]
[393122305,1762278636827,-492.0,0.00038602,90]
[393122306,1762278636836,-171.88400585,0.000387,120]
[393122307,1762278636845,-160.28790208,0.000387,120]
[393122308,1762278636854,-174.47334731,0.000387,120]
[393122309,1762278636863,-346.48087703,0.000387,120]
[393122310,1762278636873,-853.3162474,0.000387,120]
[393122311,1762278636882,-989.69160086,0.000387,120]
[393122312,1762278636891,-150.0,0.00038773,5]
[393122313,1762278636901,-425.0,0.00038808,2]
[393122314,1762278636910,-4394.0,0.00038939,120]
[393122315,1762278636919,-10000.0,0.00039,8]
[393122316,1762278636928,-160.0,0.00039,120]
[393122317,1762278636937,-160.0,0.00039,30]
[393122318,1762278636946,-1395.67,0.00039,14]
[393122319,1762278636955,-164.69938,0.00039014,60]
[393122320,1762278636966,-154.863149,0.00039014,60]
[393122321,1762278636975,-345.0,0.00039107,2]
[393122322,1762278637066,-1500.0,0.00039116,5]
[393122323,1762278637087,-300.0,0.00039321,5]
[393122324,1762278637098,-164.69938,0.00039485,60]
[393122325,1762278637107,-154.863149,0.00039485,60]
[393122326,1762278637116,-23692.39,0.000395,14]
[393122327,1762278637125,-154.863149,0.00039576,31]
[393122328,1762278637136,-1849.54,0.000397,24]
[393122329,1762278637145,-451.05641397,0.00039868,5]
[393122330,1762278637155,-171.88400585,0.000399,120]
[393122331,1762278637164,-346.48087703,0.000399,120]
[393122332,1762278637173,-853.3162474,0.000399,120]
[393122333,1762278637183,-989.69160086,0.000399,120]
[393122334,1762278637192,-23692.39,0.000399,14]
[393122335,1762278637202,-1800.0,0.0004,15]
[393122336,1762278637212,-10000.0,0.0004,10]
[393122337,1762278637221,-1580.33,0.0004,30]
[393122338,1762278637231,-1395.67,0.0004,14]
[393122339,1762278637240,-164.69938,0.00040756,31]
[393122340,1762278637250,-154.863149,0.00040756,31]
[393122341,1762278637260,-200.0,0.0004076,120]
[393122342,1762278637270,-2000.0,0.00041061,21]
[393122343,1762278637280,-402.94013848,0.00041096,31]
[393122344,1762278637291,-346.48087703,0.000411,120]
[393122345,1762278637301,-853.3162474,0.000411,120]
[393122346,1762278637313,-989.69160086,0.000411,120]
[393122347,1762278637322,-160.0,0.00041198,3]
[393122348,1762278637332,-23692.39,0.000412,14]
[393122349,1762278637342,-2162.0,0.00041347,2]
[393122350,1762278637352,-150.92162858,0.00041425,30]
[393122351,1762278637362,-500.0,0.00041473,10]
[393122352,1762278637371,-151.0,0.000415,120]
[393122353,1762278637381,-151.0,0.000415,120]
[393122354,1762278637391,-154.634054,0.000415,120]
[393122355,1762278637401,-151.0,0.000415,120]
[393122356,1762278637411,-151.0,0.000415,120]
[393122357,1762278637420,-151.0,0.000415,120]
[393122358,1762278637430,-151.0,0.000415,120]
[393122359,1762278637440,-151.0,0.000415,120]
[393122360,1762278637451,-2759.0044813,0.00041819,4]
[393122361,1762278637470,-150.92162858,0.00041863,30]
[393122362,1762278637483,-11742.1,0.00041878,14]
[393122363,1762278637493,-1580.33,0.000419,30]
[393122364,1762278637503,-159.19253123,0.00041973,30]
[393122365,1762278637513,-159.19253123,0.00041973,30]
[393122366,1762278637523,-160.0,0.00042,120]
[393122367,1762278637533,-1395.67,0.00042,14]
[393122368,1762278637543,-188.72588809,0.00042021,10]
[393122369,1762278637552,-552.40755083,0.00042178,4]
[393122370,1762278637565,-1580.33,0.000422,30]
[393122371,1762278637575,-211.81725,0.00042233,14]
[393122372,1762278637585,-346.48087703,0.000423,120]
[393122373,1762278637596,-853.3162474,0.000423,120]
[393122374,1762278637605,-989.69160086,0.000423,120]
[393122375,1762278637618,-150.92162858,0.00042301,30]
[393122376,1762278637628,-23692.39,0.000424,14]
[393122377,1762278637639,-1000.0,0.00042463,90]
[393122378,1762278637648,-791.0,0.00042463,90]
[393122379,1762278637659,-159.19253123,0.00042521,30]
[393122380,1762278637668,-218.47106419,0.00042521,30]
[393122381,1762278637678,-259.64640746,0.00042544,4]
[393122382,1762278637688,-150.92162858,0.0004274,30]
[393122383,1762278637697,-1395.67,0.000428,14]
[393122384,1762278637707,-160.0,0.00042995,4]
[393122385,1762278637716,-159.19253123,0.00043068,30]
[393122386,1762278637726,-150.92162858,0.00043178,30]
[393122387,1762278637736,-13842.2,0.00043318,14]
[393122388,1762278637746,-150.92162858,0.00043616,30]
[393122389,1762278637755,-600.0,0.00043618,2]
[393122390,1762278637765,-1871.81734,0.0004372,16]
[393122391,1762278637775,-9470.96250451,0.00043735,2]
[393122392,1762278637784,-1000.0,0.0004374,16]
[393122393,1762278637794,-1000.0,0.0004376,16]
[393122394,1762278637805,-1000.0,0.0004378,16]
[393122395,1762278637820,-1175.625301,0.0004378,16]
[393122396,1762278637830,-1000.0,0.000438,90]
[393122397,1762278637839,-1000.0,0.000438,90]
[393122398,1762278637849,-1000.0,0.000438,17]
[393122399,1762278637858,-1000.0,0.000438,17]
[393122400,1762278637867,-1930.147416,0.000438,43]
[393122401,1762278637876,-338.02161606,0.00043835,120]
[393122402,1762278637886,-501.28262695,0.00043835,2]
[393122403,1762278637895,-500.0,0.00043835,120]
[393122404,1762278637905,-500.0,0.00043835,120]
[393122405,1762278637915,-500.0,0.00043835,120]
[393122406,1762278637925,-500.0,0.00043835,120]
[393122407,1762278637934,-500.0,0.00043835,120]
[393122408,1762278637943,-500.0,0.00043835,120]
[393122409,1762278637953,-500.0,0.00043835,120]
[393122410,1762278637962,-500.0,0.00043835,120]
[393122411,1762278637971,-500.0,0.00043835,120]
[393122412,1762278637980,-500.0,0.00043835,120]
[393122413,1762278637989,-481.93746324,0.00043835,120]
[393122414,1762278637999,-500.0,0.00043835,120]
[393122415,1762278638009,-500.0,0.00043835,120]
[393122416,1762278638018,-1000.0,0.00043835,2]
[393122417,1762278638027,-500.0,0.00043835,120]
[393122418,1762278638038,-500.0,0.00043835,120]
[393122419,1762278638047,-500.0,0.00043835,120]
[393122420,1762278638057,-500.0,0.00043835,120]
[393122421,1762278638069,-483.10781745,0.00043835,120]
[393122422,1762278638078,-480.0,0.00043835,120]
[393122423,1762278638088,-500.0,0.00043835,30]
[393122425,1762278638098,-500.0,0.00043835,120]
[393122426,1762278638107,-500.0,0.00043835,120]
[393122429,1762278638117,-500.0,0.00043835,120]
[393122430,1762278638127,-500.0,0.00043835,120]
[393122432,1762278638136,-500.0,0.00043835,120]
[393122435,1762278638146,-3269.32,0.00043835,15]
[393122436,1762278638156,-500.0,0.00043835,120]
[393122439,1762278638166,-500.0,0.00043835,120]
[393122440,1762278638176,-500.0,0.00043835,120]
[393122441,1762278638187,-500.0,0.00043835,120]
[393122442,1762278638196,-500.0,0.00043835,120]
[393122443,1762278638206,-483.44976667,0.00043835,120]
[393122444,1762278638215,-500.0,0.00043835,120]
[393122445,1762278638225,-500.0,0.00043835,120]
[393122446,1762278638234,-500.0,0.00043835,120]
[393122447,1762278638251,-500.0,0.00043835,120]
[393122448,1762278638267,-531.9741491,0.00043835,120]
[393122449,1762278638277,-500.0,0.00043835,120]
[393122450,1762278638288,-320.76839898,0.00043835,120]
[393122451,1762278638299,-523.93500087,0.00043835,120]
[393122452,1762278638309,-500.0,0.00043835,120]
[393122453,1762278638320,-500.0,0.00043835,120]
[393122454,1762278638330,-512.56360736,0.00043835,120]
[393122455,1762278638340,-500.0,0.00043835,120]
[393122456,1762278638350,-500.0,0.00043835,120]
[393122457,1762278638360,-500.0,0.00043835,120]
[393122458,1762278638370,-500.0,0.00043835,120]
[393122459,1762278638380,-500.0,0.00043835,120]
[393122460,1762278638391,-500.0,0.00043835,120]
[393122461,1762278638402,-500.0,0.00043835,120]
[393122462,1762278638412,-500.0,0.00043835,120]
[393122463,1762278638421,-500.0,0.00043835,120]
[393122464,1762278638432,-500.0,0.00043835,120]
[393122465,1762278638441,-500.0,0.00043835,120]
[393122466,1762278638451,-500.0,0.00043835,120]
[393122467,1762278638461,-500.0,0.00043835,120]
[393122468,1762278638471,-500.0,0.00043835,120]
[393122469,1762278638481,-500.0,0.00043835,120]
[393122470,1762278638491,-500.0,0.00043835,120]
[393122471,1762278638501,-500.0,0.00043835,120]
[393122472,1762278638512,-500.0,0.00043835,20]
[393122473,1762278638522,-500.0,0.00043835,120]
[393122474,1762278638532,-500.0,0.00043835,120]
[393122475,1762278638542,-500.0,0.00043835,120]
[393122476,1762278638551,-484.42040513,0.00043835,120]
[393122477,1762278638562,-500.0,0.00043835,120]
[393122479,1762278638580,-500.0,0.00043835,120]
[393122481,1762278638600,-500.0,0.00043835,120]
[393122483,1762278638615,-500.0,0.00043835,120]
[393122484,1762278638629,-500.0,0.00043835,120]
[393122485,1762278638638,-500.0,0.00043835,120]
[393122486,1762278638647,-500.0,0.00043835,120]
[393122487,1762278638656,-500.0,0.00043835,120]
[393122488,1762278638666,-500.0,0.00043835,120]
[393122489,1762278638675,-559.47,0.00043835,120]
[393122490,1762278638684,-500.0,0.00043835,120]
[393122491,1762278638695,-500.0,0.00043835,120]
[393122493,1762278638707,-500.0,0.00043835,120]
[393122495,1762278638716,-500.0,0.00043835,120]
[393122496,1762278638725,-500.0,0.00043835,120]
[393122497,1762278638734,-500.0,0.00043835,120]
[393122499,1762278638744,-500.0,0.00043835,120]
[393122500,1762278638753,-500.0,0.00043835,120]
[393122501,1762278638762,-500.0,0.00043835,120]
[393122502,1762278638771,-500.0,0.00043835,120]
[393122503,1762278638781,-500.0,0.00043835,120]
[393122504,1762278638790,-500.0,0.00043835,120]
[393122505,1762278638800,-500.0,0.00043835,120]
[393122506,1762278638810,-500.0,0.00043835,120]
[393122507,1762278638820,-500.0,0.00043835,120]
[393122508,1762278638829,-500.0,0.00043835,120]
[393122509,1762278638840,-474.12819301,0.00043835,120]
[393122510,1762278638850,-500.0,0.00043835,120]
[393122511,1762278638860,-500.0,0.00043835,120]
[393122512,1762278638871,-604.86564604,0.00043835,120]
[393122513,1762278638881,-500.0,0.00043835,120]
[393122514,1762278638892,-500.0,0.00043835,120]
[393122515,1762278638902,-500.0,0.00043835,120]
[393122516,1762278638912,-500.0,0.00043835,120]
[393122517,1762278638922,-500.0,0.00043835,2]
[393122518,1762278638932,-500.0,0.00043835,60]
[393122519,1762278638941,-500.0,0.00043835,120]
[393122520,1762278638950,-500.0,0.00043835,120]
[393122521,1762278638959,-500.0,0.00043835,120]
[393122522,1762278638968,-500.0,0.00043835,120]
[393122523,1762278638978,-500.0,0.00043835,120]
[393122524,1762278638987,-500.0,0.00043835,120]
[393122525,1762278638996,-500.0,0.00043835,120]
[393122526,1762278639006,-175.04781466,0.00043835,120]
[393122527,1762278639015,-500.0,0.00043835,120]
[393122528,1762278639025,-1000.0,0.00043835,2]
[393122529,1762278639034,-500.0,0.00043835,120]
[393122530,1762278639044,-500.0,0.00043835,120]
[393122531,1762278639053,-500.0,0.00043835,120]
[393122532,1762278639064,-933.27,0.00043835,120]
[393122533,1762278639074,-500.0,0.00043835,120]
[393122534,1762278639083,-500.0,0.00043835,120]
[393122535,1762278639093,-500.0,0.00043835,120]
[393122536,1762278639102,-598.12928208,0.00043835,120]
[393122537,1762278639111,-500.0,0.00043835,120]
[393122538,1762278639121,-500.0,0.00043835,120]
[393122539,1762278639131,-500.0,0.00043835,120]
[393122540,1762278639141,-500.0,0.00043835,120]
[393122541,1762278639150,-500.0,0.00043835,120]
[393122542,1762278639160,-500.0,0.00043835,14]
[393122543,1762278639170,-500.0,0.00043835,120]
[393122544,1762278639179,-513.56251652,0.00043835,120]
[393122545,1762278639189,-500.0,0.00043835,120]
[393122546,1762278639199,-500.0,0.00043835,120]
[393122547,1762278639208,-500.0,0.00043835,120]
[393122548,1762278639218,-500.0,0.00043835,120]
[393122549,1762278639228,-500.0,0.00043835,120]
[393122550,1762278639239,-500.0,0.00043835,120]
[393122551,1762278639248,-500.0,0.00043835,120]
[393122552,1762278639257,-500.0,0.00043835,120]
[393122553,1762278639267,-500.0,0.00043835,120]
[393122554,1762278639277,-500.0,0.00043835,120]
[393122555,1762278639288,-584.57,0.00043835,120]
[393122556,1762278639298,-500.0,0.00043835,120]
[393122557,1762278639307,-503.01169477,0.00043835,120]
[393122558,1762278639320,-529.45920748,0.00043835,120]
[393122559,1762278639330,-502.26422947,0.00043835,120]
[393122560,1762278639340,-500.0,0.00043835,120]
[393122561,1762278639350,-500.0,0.00043835,120]
[393122562,1762278639361,-500.0,0.00043835,120]
[393122563,1762278639371,-500.0,0.00043835,120]
[393122564,1762278639476,-500.0,0.00043835,120]
[393122565,1762278639494,-500.0,0.00043835,120]
[393122566,1762278639506,-616.49999393,0.00043835,120]
[393122567,1762278639517,-561.61860182,0.00043835,120]
[393122568,1762278639528,-1737.84,0.00043835,120]
[393122569,1762278639538,-500.0,0.00043835,120]
[393122570,1762278639548,-500.0,0.00043835,120]
[393122571,1762278639559,-500.0,0.00043835,120]
[393122572,1762278639571,-500.0,0.00043835,120]
[393122573,1762278639582,-500.0,0.00043835,120]
[393122574,1762278639593,-500.0,0.00043835,120]
[393122575,1762278639604,-500.0,0.00043835,120]
[393122576,1762278639620,-504.30432003,0.00043835,120]
[393122577,1762278639629,-443.16710453,0.00043835,120]
[393122578,1762278639640,-500.0,0.00043835,120]
[393122579,1762278639649,-500.0,0.00043835,120]
[393122580,1762278639660,-500.0,0.00043835,120]
[393122581,1762278639670,-500.0,0.00043835,120]
[393122582,1762278639679,-500.0,0.00043835,30]
[393122583,1762278639690,-500.0,0.00043835,120]
[393122584,1762278639699,-500.0,0.00043835,120]
[393122585,1762278639708,-500.0,0.00043835,120]
[393122586,1762278639717,-500.0,0.00043835,120]
[393122587,1762278639727,-500.0,0.00043835,120]
[393122588,1762278639736,-500.0,0.00043835,120]
[393122589,1762278639746,-493.96898882,0.00043835,120]
[393122590,1762278639755,-500.0,0.00043835,120]
[393122591,1762278639765,-500.0,0.00043835,120]
[393122592,1762278639774,-500.0,0.00043835,120]
[393122593,1762278639782,-500.0,0.00043835,120]
[393122594,1762278639791,-500.0,0.00043835,120]
[393122595,1762278639801,-500.0,0.00043835,120]
[393122596,1762278639810,-500.0,0.00043835,120]
[393122597,1762278639823,-500.0,0.00043835,120]
[393122598,1762278639832,-500.0,0.00043835,120]
[393122599,1762278639842,-500.0,0.00043835,120]
[393122600,1762278639851,-500.0,0.00043835,120]
[393122601,1762278639860,-500.0,0.00043835,120]
[393122602,1762278639870,-500.0,0.00043835,120]
[393122603,1762278639879,-500.0,0.00043835,120]
[393122604,1762278639889,-500.0,0.00043835,120]
[393122605,1762278639899,-480.34189591,0.00043835,120]
[393122606,1762278639909,-500.0,0.00043835,120]
[393122607,1762278639919,-500.0,0.00043835,120]
[393122608,1762278639928,-481.11751944,0.00043835,120]
[393122609,1762278639936,-500.0,0.00043835,120]
[393122610,1762278639946,-500.0,0.00043835,120]
[393122611,1762278639955,-500.0,0.00043835,120]
[393122612,1762278639964,-500.0,0.00043835,120]
[393122613,1762278639974,-500.0,0.00043835,120]
[393122614,1762278639983,-500.0,0.00043835,120]
[393122615,1762278639992,-493.86354274,0.00043835,120]
[393122616,1762278640001,-500.0,0.00043835,120]
[393122617,1762278640010,-500.0,0.00043835,120]
[393122618,1762278640019,-500.0,0.00043835,120]
[393122619,1762278640028,-500.0,0.00043835,120]
[393122620,1762278640037,-500.0,0.00043835,120]
[393122621,1762278640046,-500.35417337,0.00043835,120]
[393122622,1762278640057,-500.0,0.00043835,120]
[393122623,1762278640067,-500.0,0.00043835,120]
[393122624,1762278640076,-500.0,0.00043835,120]
[393122625,1762278640085,-500.0,0.00043835,120]
[393122626,1762278640094,-500.0,0.00043835,120]
[393122627,1762278640102,-500.0,0.00043835,120]
[393122628,1762278640111,-500.0,0.00043835,120]
[393122629,1762278640121,-167.1867864,0.00043835,120]
[393122630,1762278640131,-500.0,0.00043835,120]
[393122631,1762278640140,-500.0,0.00043835,120]
[393122632,1762278640149,-500.0,0.00043835,120]
[393122633,1762278640159,-501.86421534,0.00043835,120]
[393122635,1762278640168,-413.90340033,0.00043835,120]
[393122637,1762278640177,-500.0,0.00043835,120]
[393122639,1762278640186,-519.99270739,0.00043835,120]
[393122640,1762278640196,-151.0,0.00043835,7]
[393122641,1762278640205,-370.96629068,0.00043835,120]
[393122643,1762278640215,-500.0,0.00043835,120]
[393122644,1762278640224,-500.0,0.00043835,120]
[393122646,1762278640234,-500.0,0.00043835,120]